Workbook

Sheet Silica Gel Calculator v1 (hidden)
D5: INPUTS
D6: Input your annual silica gel usage
D7: Step 1: Input estimated number of silica gel bags used anually (millions of bags)
D8: Step 2: Input the average weight of the bags (select size from the dropdown list)
E10: Input Number of Sachets | H10: 100 | I10: Million
E11: Input Weight of Each Sachet | H11: 5 | I11: Grams | J11: *Click cell to select from dropdown list

Sheet Silica Gel Inputs v2 (hidden)
B6: SILICA GEL MATERIAL WASTE CALCULATOR
B8: INPUTS
C10: Annual Silica Gel Usage
C11: Number of sachets | D11: =D16*1000000 -> 
C12: Step 1: Input estimated number of silica gel bags used anually (millions of bags)
C13: Step 2: Input the average weight of the bags (select size from the dropdown list)
C16: Input Number of Sachets | D16: =#REF! ->  | E16: Million
C17: Input Weight of Each Sachet | D17: =#REF! ->  | E17: Grams | F17: *Click cell to select size from dropdown list
B20: RESULTS
C22: Silica Gel Waste to Landfill
C24: Silica Gel Beads | D24: =(D11*D17)/1000000 ->  | E24: Metric Tonnes
C25: Plastic Packaging (Quantity) | D25: =IF(D17=2,(D39*D11)/10000,IF(D17=5,D40*D11/10000,IF(D17=10,D41*D11/10000,IF(D17=25,D42*D11/10000,IF(D17=50,D43*D11/10000,IF(D17=1,D38*D11/10000,"")))))) ->  | E25: Square Meters
C26: Equivalent to: | D26: =ROUNDUP(D25/7000,2) ->  | E26: Soccer Pitches
D27: =ROUNDUP(D25/5500,0) ->  | E27: American Football Fields (incl. end zones)
C28: Plastic Packaging (Weight) | D28: =IF(D17=2,(E39*D11)/1000,IF(D17=5,E40*D11/1000,IF(D17=10,E41*D11/1000,IF(D17=25,E42*D11/1000,IF(D17=50,E43*D11/1000,IF(D17=1,E38*D11/1000,"")))))) ->  | E28: Kilograms | G28: =ROUNDUP(D28/1000,0) ->  | H28: MT
C29: Equivalent to: | D29: =(D28*1000)/20 ->  | E29: 1 Litre Plastic Bottles (20g per litre)
C31: Micro-Pak Dri Clay® Equivalent Waste to Landfill
C33: Natural Clay | D33: =D24 ->  | E33: Metric Tonnes
C34: Plastic Waste (Quantity & Weight) | D34: ZERO | E34: Square Meters / Kilograms
C37: Weight (grams) | D37: Size (cm²) | E37: Weight (g)
C38: 1 | D38: =(2.2*4.2)*2 -> 18.48 | E38: 0.16
C39: 2 | D39: =(3.5*5)*2 -> 35 | E39: 0.27
C40: 5 | D40: =(3.5*6)*2 -> 42 | E40: 0.47
C41: 10 | D41: =(3.5*9.6)*2 -> 67.2 | E41: 0.82
C42: 25 | D42: =(8.5*11.5)*2 -> 195.5 | E42: 1.3
C43: 50 | D43: =(9*12.5)*2 -> 225 | E43: 1.85
C47: Silica Gel Output | D47: 45000 | E47: MT | G47: 1MT of silica gel needs:
C48: Sodium Silicate | D48: 63000 | E48: MT | G48: Sodium Silicate (MT) | H48: =(D48/D47)/1000 -> 0.0014 | I48: MT
C49: Sulphuric Acid | D49: 22500 | E49: MT
C50: Fresh Water | D50: 855000 | E50: MT | G50: Fresh Water (Litres) | H50: =(D50/D47)*1000 -> 19000 | I50: Ltr
C51: Waste Water | D51: 697000 | E51: MT | G51: Waste Water (Litres) | H51: =(D51/D47)*1000 -> 15488.88889 | I51: Ltr
B52: CHEMICAL INPUTS & WATER CONSUMPTION
C53: Sodium Silicate | D53: =((D48/D47))*D24 ->  | E53: Metric Tonnes
C54: Fresh Water | D54: =((D50/D47))*D24 ->  | E54: Metric Tonnes
C55: Sulphuric Acid | D55: =(D49/D47)*D24 ->  | E55: Metric Tonnes
C56: Fresh Water | D56: =D54*1000 ->  | E56: Litres
C57: Waste Water | D57: =(D51/D47)*D24 ->  | E57: Metric Tonnes
C58: Waste Water | D58: =D57*1000 ->  | E58: Litres

Sheet Calcium Chloride Calculator
E6: INPUTS
E7: Input your annual calcium chloride desiccant usage
E8: Step 1: Input estimated number of calcium chloride bags used anually (millions of bags)
E9: Step 2: Input the average weight of the bags (select size from the dropdown list)
F11: Input Number of Sachets | I11: 50 | J11: Million
F12: Input Weight of Each Sachet | I12: 2 | J12: Grams | K12: *Click cell to select from dropdown list

Sheet CACi2 inputs (hidden)
B6: CALCIUM CHLORIDE DESICCANT MATERIAL WASTE CALCULATOR
B8: INPUTS | L8: PACKAGING BREAKDOWN
C10: Annual Calcium Chloride Desiccant Usage | M10: Calcium Chloride Desiccants
C11: Number of sachets | D11: =D16*1000000 -> 50000000
C12: Step 1: Input estimated number of desiccant bags used anually (millions of bags)
C13: Step 2: Input the average weight of the bags (select size from the dropdown list)
C16: Input Number of Sachets | D16: ='Calcium Chloride Calculator'!$I$11 -> 50 | E16: Million
C17: Input Weight of Each Sachet | D17: ='Calcium Chloride Calculator'!$I$12 -> 2 | E17: Grams | F17: *Click cell to select size from dropdown list
B20: RESULTS
C22: Calcium Chloride Desiccant Waste to Landfill
C24: Calcium Chloride Ingredient | D24: =(D11*D17)/1000000 -> 100 | E24: Metric Tonnes
C25: Plastic Packaging (Quantity) | D25: =IF(D17=5,(D40*D11)/10000,IF(D17=10,D41*D11/10000,IF(D17=25,D42*D11/10000,IF(D17=50,D43*D11/10000,IF(D17=100,D44*D11/10000,IF(D17=2,D39*D11/10000,"")))))) -> 935000 | E25: Square Meters
C26: Equivalent to: | D26: =ROUNDUP(D25/7000,2) -> 133.58 | E26: Soccer Pitches
D27: =ROUNDUP(D25/5500,0) -> 170 | E27: American Football Fields (incl. end zones)
C28: Plastic Packaging (Weight KGS) | D28: =IF(D17=5,(E40*D11)/1000,IF(D17=10,E41*D11/1000,IF(D17=25,E42*D11/1000,IF(D17=50,E43*D11/1000,IF(D17=100,E44*D11/1000,IF(D17=2,E39*D11/1000,"")))))) -> 55000 | E28: Kilograms
C29: Plastic Packaging (Weight MT | D29: =ROUNDUP(D28/1000,0) -> 55 | E29: MT
C30: Equivalent to: | D30: =(D28*1000)/20 -> 2750000 | E30: 1 Litre Plastic Bottles (20g per litre)
C32: Micro-Pak Dri Clay® Equivalent Waste to Landfill | M32: Dri Clay® Kraft - Plastic free, biodegradable and FSC-Certified Kraft paper
C34: Natural Clay | D34: =D24 -> 100 | E34: Metric Tonnes
C35: Plastic Waste (Quantity & Weight) | D35: ZERO | E35: Square Meters / Kilograms
C38: Weight (grams) | D38: Size (cm²) | E38: Weight (g)
C39: 2 | D39: =(8.5*5.5)*4 -> 187 | E39: 1.1
C40: 5 | D40: =(11.5*5.5)*4 -> 253 | E40: 1.4
C41: 10 | D41: =(10.3*10.2)*4 -> 420.24 | E41: 1.7
C42: 25 | D42: =(12.5*10.2)*4 -> 510 | E42: 2.4
C43: 50 | D43: =(17*10.2)*4 -> 693.6 | E43: 3
C44: 100 | D44: =(17.5*16)*4 -> 1120 | E44: 4.3
C47: Calicum chloride output | D47: 15000 | E47: MT | G47: Conversion
C48: Inputs:
C49: CaCO3 (calcium carbonate) | D49: 13750 | E49: MT | G49: =(D49/$D$47)*$D$24 -> 91.66666667 | H49: MT
C50: CaO (calcium oxide) | D50: 1095 | E50: MT | G50: =(D50/$D$47)*$D$24 -> 7.3 | H50: MT
C51: HCI (hydrochloric acid) | D51: 29200 | E51: MT | G51: =(D51/$D$47)*$D$24 -> 194.6666667 | H51: MT
C52: Water | D52: 2700 | E52: MT | G52: 18 | H52: MT | I52: =G52*1000 -> 18000 | J52: Litres
C53: Coal | D53: 6000 | E53: MT | G53: 40 | H53: MT
C54: Waste Output
C55: Waste Water | D55: 2010 | E55: MT | G55: =(D55/$D$47)*$D$24 -> 13.4 | H55: MT
C56: Furnace slag & dust | D56: 1357 | E56: MT | G56: =(D56/$D$47)*$D$24 -> 9.046666667 | H56: MT
C57: Exhaust Gas (Sulphur dioxide / Nitrogen oxide) | D57: 292 | E57: MT | G57: =(D57/$D$47)*$D$24 -> 1.946666667 | H57: MT
C58: CO2 (carbon dioxide) | D58: 10059 | E58: MT | G58: =(D58/$D$47)*$D$24 -> 67.06 | H58: MT
C59: Water Vapor | D59: 18075 | E59: MT | G59: =(D59/$D$47)*$D$24 -> 120.5 | H59: MT | I59: =G59*1000 -> 120500 | J59: Litres
C63: Item | D63: Input | E63: Annual consumption | G63: Output | H63: Annual production
C64: 1 | D64: CaCO3 (95%) | E64: 13,750 MT | G64: Calcium Chloride (CaCl2) | H64: 15,000 MT
C65: 2 | D65: CaO (88.64%) | E65: 1,095 MT | G65: Waste water sludge | H65: 2,010 MT
C66: 3 | D66: HCl (31%) | E66: 29,238 MT | G66: Furnace slag & dust | H66: 1,357 MT
C67: 4 | D67: Water | E67: 2,700 MT | G67: Exhaust gas (SO2, NOx) | H67: 292 MT
C68: 5 | D68: Electricity | E68: 1,650k kwh | G68: CO2 | H68: 10,059 MT
C69: 6 | D69: Coal | E69: 6,000 MT | G69: Water Vapor | H69: 18,065 MT
